fUST/lending_fUST_20240306
["ID","MTS","AMOUNT","RATE_DAILY","PERIOD"]
[317034754,1709670646015,-500.0,0.00023899,2]
[317034756,1709670646024,-500.0,0.00023899,2]
[317034757,1709670646033,-632.4,0.00023899,2]
[317034758,1709670646042,-500.0,0.00023899,2]
[317034759,1709670646051,-500.0,0.00023899,2]
[317034761,1709670646061,-500.0,0.00023899,2]
[317034762,1709670646071,-500.0,0.00023899,2]
[317034764,1709670646080,-1153.8,0.00023899,2]
[317034766,1709670646090,-500.0,0.00023899,2]
[317034768,1709670646100,-5965.31,0.00023899,2]
[317034770,1709670646109,-5965.31,0.00023899,2]
[317034772,1709670646119,-5965.31,0.00023899,2]
[317034774,1709670646128,-5965.31,0.00023899,2]
[317034776,1709670646137,-5965.31,0.00023899,2]
[317034778,1709670646147,-5965.31,0.00023899,2]
[317034780,1709670646157,-5965.31,0.00023899,2]
[317034782,1709670646166,-630.53,0.00023899,2]
[317034784,1709670646175,-630.53,0.00023899,2]
[317034786,1709670646184,-630.53,0.00023899,2]
[317034788,1709670646193,-630.53,0.00023899,2]
[317034790,1709670646203,-630.53,0.00023899,2]
[317034792,1709670646215,-630.53,0.00023899,2]
[317034793,1709670646224,-630.53,0.00023899,2]
[317034794,1709670646233,-500.0,0.00023899,2]
[317034797,1709670646243,-4113.54,0.00023899,2]
[317034798,1709670646252,-500.0,0.00023899,2]
[317034800,1709670646262,-500.0,0.00023899,2]
[317034802,1709670646271,-484.41,0.00023899,2]
[317034804,1709670646281,-587.0,0.00023899,2]
[317034806,1709670646290,-587.0,0.00023899,2]
[317034808,1709670646300,-587.0,0.00023899,2]
[317034810,1709670646310,-575.32,0.00023899,2]
[317034812,1709670646320,-587.0,0.00023899,2]
[317034814,1709670646330,-587.0,0.00023899,2]
[317034816,1709670646340,-587.0,0.00023899,2]
[317034818,1709670646350,-587.0,0.00023899,2]
[317034820,1709670646360,-500.0,0.00023899,2]
[317034822,1709670646370,-500.0,0.00023899,2]
[317034824,1709670646380,-500.0,0.00023899,2]
[317034826,1709670646390,-546.96935199,0.00023899,2]
[317034828,1709670646399,-500.0,0.00023899,2]
[317034830,1709670646410,-500.0,0.00023899,2]
[317034833,1709670646426,-500.0,0.00023899,2]
[317034835,1709670646439,-500.0,0.00023899,2]
[317034836,1709670646452,-191.85655641,0.00023899,2]
[317034838,1709670646471,-1066.05,0.00023899,2]
[317034840,1709670646483,-1066.05,0.00023899,2]
[317034842,1709670646494,-1066.05,0.00023899,2]
[317034844,1709670646506,-1066.05,0.00023899,2]
[317034846,1709670646518,-1066.05,0.00023899,2]
[317034849,1709670646530,-1066.05,0.00023899,2]
[317034851,1709670646543,-1066.05,0.00023899,2]
[317034854,1709670646557,-2314.28,0.00023899,2]
[317034855,1709670646569,-2314.28,0.00023899,2]
[317034857,1709670646581,-2314.28,0.00023899,2]
[317034860,1709670646592,-2314.28,0.00023899,2]
[317034861,1709670646602,-2314.28,0.00023899,2]
[317034862,1709670646615,-2314.28,0.00023899,2]
[317034863,1709670646628,-2314.28,0.00023899,2]
[317034866,1709670646641,-276000.0,0.000239,2]
[317034868,1709670646652,-963.20623179,0.000239,2]
[317034870,1709670646664,-490.76398844,0.000239,2]
[317034872,1709670646677,-382.29,0.000239,2]
[317034875,1709670646690,-4113.54,0.0002391,2]
[317034877,1709670646701,-4113.54,0.0002391,2]
[317034879,1709670646714,-4113.54,0.0002391,2]
[317034881,1709670646727,-4113.54,0.0002391,2]
[317034884,1709670646740,-4113.54758143,0.0002391,2]
[317034886,1709670646751,-5843.91490468,0.00023968,6]
[317034888,1709670646764,-1153.8,0.00023997,2]
[317034890,1709670646775,-500.0,0.00023997,2]
[317034893,1709670646787,-2314.28,0.00023997,2]
[317034895,1709670646799,-385.67330368,0.00023998,2]
[317034896,1709670646811,-286.13244287,0.00023998,2]
[317034898,1709670646823,-220.83183624,0.00023998,2]
[317034900,1709670646835,-155.52917882,0.00023998,2]
[317034903,1709670646848,-441.36557175,0.00023998,2]
[317034905,1709670646861,-2512.25613285,0.00023998,2]
[317034907,1709670646875,-238.70171817,0.00023998,2]
[317034909,1709670646888,-781.7867124,0.00023998,2]
[317034911,1709670646900,-163.29643085,0.00023998,2]
[317034913,1709670646910,-1180.86,0.00023998,2]
[317034915,1709670646919,-500.0,0.00023998,2]
[317034917,1709670646930,-1472.85786267,0.00023998,2]
[317034920,1709670646941,-697.50319911,0.00023998,2]
[317034922,1709670646953,-1080.24298436,0.00023998,2]
[317034924,1709670646969,-1153.8,0.00023998,2]
[317034926,1709670646980,-500.0,0.00023998,2]
[317034929,1709670646993,-5965.31,0.00023998,2]
[317034931,1709670647005,-630.53,0.00023998,2]
[317034934,1709670647023,-587.0,0.00023998,2]
[317034935,1709670647034,-587.0,0.00023998,2]
[317034936,1709670647046,-1066.05,0.00023998,2]
[317034938,1709670647057,-1066.05,0.00023998,2]
[317034939,1709670647068,-2314.28,0.00023998,2]
[317034940,1709670647079,-4304.21893284,0.00023999,3]
[317034941,1709670647090,-238.2978359,0.00023999,2]
[317034942,1709670647101,-1180.86,0.00023999,2]
[317034943,1709670647112,-1180.86,0.00023999,2]
[317034944,1709670647122,-1180.86,0.00023999,2]
[317034945,1709670647132,-1180.86,0.00023999,2]
[317034946,1709670647142,-1180.86,0.00023999,2]
[317034947,1709670647153,-1180.86,0.00023999,2]
[317034948,1709670647164,-1180.86,0.00023999,2]
[317034949,1709670647175,-1180.86,0.00023999,2]
[317034950,1709670647186,-1180.86,0.00023999,2]
[317034951,1709670647196,-1180.86,0.00023999,2]
[317034952,1709670647211,-1180.86,0.00023999,2]
[317034953,1709670647223,-1180.86,0.00023999,2]
[317034954,1709670647235,-1181.02,0.00023999,2]
[317034956,1709670647247,-500.0,0.00023999,2]
[317034958,1709670647258,-461.8,0.00023999,2]
[317034960,1709670647269,-1153.8,0.00023999,2]
[317034963,1709670647281,-1153.8,0.00023999,2]
[317034964,1709670647293,-1153.8,0.00023999,2]
[317034965,1709670647305,-1153.8,0.00023999,2]
[317034966,1709670647316,-1153.8,0.00023999,2]
[317034967,1709670647328,-1153.8,0.00023999,2]
[317034969,1709670647339,-1153.8,0.00023999,2]
[317034971,1709670647351,-1153.90162296,0.00023999,2]
[317034973,1709670647362,-500.0,0.00023999,2]
[317034975,1709670647374,-500.0,0.00023999,2]
[317034978,1709670647385,-500.0,0.00023999,2]
[317034980,1709670647396,-365.32,0.00023999,2]
[317034982,1709670647408,-5965.31,0.00023999,2]
[317034984,1709670647423,-5965.31,0.00023999,2]
[317034986,1709670647435,-5965.31,0.00023999,2]
[317034988,1709670647446,-5965.31,0.00023999,2]
[317034990,1709670647464,-5965.31,0.00023999,2]
[317034992,1709670647476,-5965.31,0.00023999,2]
[317035004,1709670647587,-5965.31,0.00023999,2]
[317035006,1709670647600,-5965.31,0.00023999,2]
[317035008,1709670647609,-5965.31,0.00023999,2]
[317035010,1709670647620,-5965.39156762,0.00023999,2]
[317035012,1709670647629,-630.53,0.00023999,2]
[317035014,1709670647640,-630.53,0.00023999,2]
[317035016,1709670647649,-630.53,0.00023999,2]
[317035018,1709670647659,-630.53,0.00023999,2]
[317035020,1709670647668,-630.53,0.00023999,2]
[317035022,1709670647678,-630.53,0.00023999,2]
[317035024,1709670647687,-630.53,0.00023999,2]
[317035026,1709670647696,-630.53,0.00023999,2]
[317035028,1709670647708,-630.53,0.00023999,2]
[317035030,1709670647717,-630.62,0.00023999,2]
[317035032,1709670647726,-587.0,0.00023999,2]
[317035033,1709670647735,-587.0,0.00023999,2]
[317035034,1709670647745,-587.0,0.00023999,2]
[317035035,1709670647755,-587.0,0.00023999,2]
[317035037,1709670647764,-587.0,0.00023999,2]
[317035039,1709670647774,-587.0,0.00023999,2]
[317035041,1709670647783,-587.20906956,0.00023999,2]
[317035043,1709670647792,-1066.05,0.00023999,2]
[317035045,1709670647802,-1066.05,0.00023999,2]
[317035047,1709670647811,-1066.05,0.00023999,2]
[317035049,1709670647821,-1066.05,0.00023999,2]
[317035051,1709670647831,-1066.05,0.00023999,2]
[317035053,1709670647842,-1066.05,0.00023999,2]
[317035055,1709670647852,-1066.21928432,0.00023999,2]
[317035057,1709670647861,-2314.28,0.00023999,2]
[317035059,1709670647871,-2314.28,0.00023999,2]
[317035060,1709670647881,-2314.28,0.00023999,2]
[317035062,1709670647891,-2314.28,0.00023999,2]
[317035064,1709670647900,-2314.48,0.00023999,2]
[317035066,1709670647909,-208.77342431,0.00024,2]
[317035068,1709670647918,-236.58229485,0.00024,2]
[317035070,1709670647928,-198.20586226,0.00024,2]
[317035072,1709670647937,-2098.71727904,0.00024,2]
[317035074,1709670647946,-1022.71834264,0.00024,2]
[317035076,1709670647959,-155.0697814,0.00024,2]
[317035078,1709670647968,-230.68,0.00024,2]
[317035080,1709670647977,-500.0,0.00024,3]
[317035082,1709670647986,-500.0,0.00024,4]
[317035084,1709670647995,-1644.41199018,0.00024,4]
[317035086,1709670648005,-174.0,0.00024,2]
[317035088,1709670648014,-7892.34358075,0.00024,4]
[317035090,1709670648023,-2983.62237781,0.00024,4]
[317035092,1709670648032,-2983.62237781,0.00024,4]
[317035094,1709670648042,-2983.62237781,0.00024,4]
[317035095,1709670648051,-2983.62237781,0.00024,4]
[317035097,1709670648061,-2983.62237781,0.00024,4]
[317035100,1709670648070,-2983.62237781,0.00024,4]
[317035102,1709670648080,-2983.62237781,0.00024,4]
[317035104,1709670648089,-2983.62237781,0.00024,4]
[317035106,1709670648098,-2983.62237781,0.00024,4]
[317035108,1709670648107,-2983.6213778,0.00024,4]
[317035110,1709670648117,-101652.764019,0.00024,15]
[317035112,1709670648126,-39104.17063825,0.00024,2]
[317035114,1709670648135,-300.0,0.00024,11]
[317035116,1709670648144,-200.5064595,0.00024,2]
[317035118,1709670648154,-501.90811861,0.00024,2]
[317035119,1709670648163,-151.0,0.00024,2]
[317035121,1709670648172,-151.0,0.00024,2]
[317035123,1709670648182,-219.204849,0.00024,2]
[317035125,1709670648191,-791430.20262374,0.00024,6]
[317035133,1709670648257,-2618.29160387,0.00024,6]
[317035136,1709670648269,-6315.27178309,0.00024,6]
[317035138,1709670648280,-14179.26565671,0.00024,6]
[317035140,1709670648294,-1280.67992447,0.00024,6]
[317035142,1709670648306,-31063.42689531,0.00024,6]
[317035145,1709670648317,-3113.17925535,0.00024,6]
[317035147,1709670648329,-10974.67252499,0.00024,6]
[317035162,1709670648474,-500.0,0.00023287,2]
[317035164,1709670648484,-500.0,0.00023287,2]
[317035166,1709670648493,-500.0,0.00023287,2]
[317035168,1709670648502,-500.0,0.00023287,2]
[317035169,1709670648511,-500.0,0.00023287,2]
[317035170,1709670648520,-500.0,0.00023287,2]
[317035171,1709670648529,-500.0,0.00023287,2]
[317035172,1709670648538,-500.0,0.00023287,2]
[317035173,1709670648546,-500.0,0.00023287,2]
[317035174,1709670648555,-5779.79500001,0.00024,6]
[317035175,1709670648567,-5659.23733226,0.00024,6]
[317035189,1709670648691,-500.0,0.00023287,2]
[317035191,1709670648701,-500.0,0.00023287,2]
[317035192,1709670648713,-500.0,0.00023287,2]
[317035194,1709670648722,-500.0,0.00023287,2]
[317035196,1709670648731,-500.0,0.00023287,2]
[317035198,1709670648741,-500.0,0.00023287,2]
[317035200,1709670648753,-500.0,0.00023689,2]
[317035201,1709670648763,-30740.4853422,0.00024,6]
[317035204,1709670648776,-34584.8520621,0.00024,6]
[317035208,1709670648808,-3697.6293,0.00024,6]
[317035211,1709670648833,-500.0,0.00023898,2]
[317035213,1709670648843,-3830.54586503,0.00024,6]
[317037982,1709671595676,3234.1600215,0.00018807,2]
[317037984,1709671632587,963.28148853,0.000189,2]
[317041452,1709671771975,1635.78029604,0.0001898,2]
[317043211,1709671836787,-155.0697814,0.00019166,2]
[317043212,1709671836799,-155.0697814,0.00019167,2]
[317043214,1709671836812,-1880.71104706,0.00019168,2]
[317043215,1709671836823,-1635.78029604,0.00019168,2]
[317043216,1709671836835,-155.0697814,0.00019169,2]
[317043217,1709671836845,-155.0697814,0.00019169,2]
[317043219,1709671836856,-155.0697814,0.0001917,2]
[317043220,1709671836867,-155.0697814,0.0001917,2]
[317043221,1709671836879,-162.2188248,0.00019178,2]
[317043222,1709671836890,-250.0,0.00019308,2]
[317043224,1709671836901,-2605.512209,0.00019343,2]
[317043225,1709671836913,-170.084437,0.00019507,2]
[317043226,1709671836925,-180.622579,0.0001975,2]
[317043228,1709671836937,-206.628057,0.00019912,2]
[317043229,1709671836948,-186.33932523,0.00020009,2]
[317043230,1709671836959,-500.0,0.0002001,2]
[317043231,1709671836970,-6652.33226793,0.0002032,2]
[317043233,1709671836984,-2450.03156476,0.0002032,2]
[317043299,1709671838694,-15797.63616731,0.0002032,2]
[317043300,1709671838705,-235.0783148,0.00021821,2]
[317043301,1709671838714,-176.796147,0.00021918,2]
[317043303,1709671838723,-194.0,0.00022,2]
[317043304,1709671838733,-166.0,0.00022,2]
[317043305,1709671838744,-157.23319193,0.00022,2]
[317043307,1709671838757,-170.084437,0.00022166,2]
[317043308,1709671838766,-200.8478084,0.00022712,2]
[317043309,1709671838776,-200.8478084,0.00022712,2]
[317043310,1709671838786,-200.8478084,0.00022712,2]
[317043312,1709671838798,-200.8478084,0.00022712,2]
[317043313,1709671838808,-349.6153443,0.0002274,2]
[317043314,1709671838818,-153.0,0.0002274,2]
[317043315,1709671838827,-153.0,0.0002274,2]
[317043317,1709671838837,-200.8478084,0.00022778,2]
[317043318,1709671838847,-199.9157212,0.00022778,2]
[317043319,1709671838857,-155.0,0.00022926,2]
[317043321,1709671838877,-2053.75910592,0.00022965,3]
[317043322,1709671838894,-154.46922078,0.00022965,3]
[317043324,1709671838904,-2020.8678949,0.00022965,3]
[317043325,1709671838915,-9035.26258705,0.00022967,4]
[317043326,1709671838925,-735.26204007,0.00022968,3]
[317043327,1709671838936,-1463.60102448,0.00022968,2]
[317043329,1709671838946,-194.66794409,0.00022968,2]
[317043330,1709671838956,-500.0,0.00023,7]
[317043331,1709671838966,-500.0,0.00023,7]
[317043333,1709671838975,-500.0,0.00023,7]
[317043334,1709671838985,-500.0,0.00023,7]
[317043335,1709671838995,-500.0,0.00023,7]
[317043336,1709671839009,-500.0,0.00023,7]
[317043338,1709671839019,-500.0,0.00023,7]
[317043339,1709671839030,-500.0,0.00023,7]
[317043340,1709671839040,-584.45,0.00023,7]
[317043342,1709671839050,-200.0,0.00023,2]
[317043343,1709671839061,-194.0,0.00023014,2]
[317043344,1709671839071,-3624.48396863,0.0002317,6]
[317043345,1709671839084,-8793.75276225,0.0002317,6]
[317043347,1709671839097,-660.53663439,0.0002317,6]
[317043348,1709671839109,-3975.56154347,0.0002317,6]
[317043349,1709671839119,-3135.43201189,0.00023171,6]
[317043351,1709671839129,-1034.5836513,0.00023171,5]
[317043352,1709671839138,-346.49,0.00023171,3]
[317043353,1709671839147,-173.24,0.00023171,3]
[317043355,1709671839157,-519.76,0.00023171,3]
[317043356,1709671839166,-200.8478084,0.00023178,2]
[317043357,1709671839176,-500.0,0.0002318,2]
[317043358,1709671839186,-493.685038,0.0002318,2]
[317043360,1709671839198,-6.314962,0.0002318,2]
[317043361,1709671839207,-500.0,0.0002318,2]
[317043362,1709671839217,-398.0369495,0.0002318,2]
[317043364,1709671839227,-382.58351841,0.0002318,2]
[317043365,1709671839236,-193.65971078,0.0002318,2]
[317043366,1709671839246,-500.0,0.0002318,2]
[317043368,1709671839259,-500.0,0.0002318,2]
[317043369,1709671839269,-500.0,0.0002318,2]
[317043370,1709671839279,-500.0,0.0002318,2]
[317043372,1709671839289,-242.85566043,0.0002318,2]
[317043373,1709671839298,-500.0,0.0002318,2]
[317043374,1709671839307,-500.0,0.0002318,2]
[317043375,1709671839317,-500.0,0.0002318,2]
[317043377,1709671839326,-500.0,0.0002318,2]
[317043378,1709671839336,-500.0,0.0002318,2]
[317043379,1709671839346,-500.0,0.0002318,2]
[317043381,1709671839355,-500.0,0.0002318,2]
[317043382,1709671839365,-500.0,0.0002318,2]
[317043383,1709671839374,-500.0,0.0002318,2]
[317043385,1709671839384,-500.0,0.0002318,2]
[317043386,1709671839393,-500.0,0.0002318,2]
[317043387,1709671839402,-500.0,0.0002318,2]
[317043388,1709671839411,-500.0,0.0002318,2]
[317043390,1709671839421,-500.0,0.0002318,2]
[317043391,1709671839431,-500.0,0.0002318,2]
[317043392,1709671839441,-500.0,0.0002318,2]
[317043394,1709671839450,-500.0,0.0002318,2]
[317043395,1709671839461,-500.0,0.0002318,2]
[317043396,1709671839470,-464.25138838,0.0002318,2]
[317043398,1709671839480,-500.0,0.0002318,2]
[317043399,1709671839490,-500.0,0.0002318,2]
[317043400,1709671839503,-500.0,0.0002318,2]
[317043402,1709671839514,-500.0,0.0002318,2]
[317043403,1709671839524,-500.0,0.0002318,2]
[317043404,1709671839535,-500.0,0.0002318,2]
[317043409,1709671839665,-500.0,0.0002318,2]
[317043410,1709671839679,-429.88520487,0.0002318,2]
[317043412,1709671839690,-500.0,0.0002318,2]
[317043413,1709671839700,-500.0,0.0002318,2]
[317043414,1709671839710,-500.0,0.0002318,2]
[317043415,1709671839720,-500.0,0.0002318,2]
[317043417,1709671839730,-500.0,0.0002318,2]
[317043418,1709671839740,-500.0,0.0002318,2]
[317043419,1709671839756,-500.0,0.0002318,2]
[317043421,1709671839766,-500.0,0.0002318,2]
[317043423,1709671839776,-500.0,0.0002318,2]
[317043424,1709671839787,-500.0,0.0002318,2]
[317043426,1709671839797,-500.0,0.0002318,2]
[317043427,1709671839807,-500.0,0.0002318,2]
[317043428,1709671839817,-500.0,0.0002318,2]
[317043429,1709671839829,-500.0,0.0002318,2]
[317043431,1709671839839,-500.0,0.0002318,2]
[317043432,1709671839850,-500.0,0.0002318,2]
[317043433,1709671839859,-500.0,0.0002318,2]
[317043434,1709671839869,-500.0,0.0002318,2]
[317043436,1709671839878,-500.0,0.0002318,2]
[317043437,1709671839888,-500.0,0.0002318,2]
[317043438,1709671839898,-500.0,0.0002318,2]
[317043439,1709671839908,-500.0,0.0002318,2]
[317043441,1709671839917,-500.0,0.0002318,2]
[317043442,1709671839927,-500.0,0.0002318,2]
[317043443,1709671839936,-500.0,0.0002318,2]
[317043444,1709671839947,-500.0,0.0002318,2]
[317043446,1709671839956,-396.1141194,0.0002318,2]
[317043447,1709671839966,-500.0,0.0002318,2]
[317043448,1709671839975,-500.0,0.0002318,2]
[317043451,1709671839985,-500.0,0.0002318,2]
[317043452,1709671839994,-500.0,0.0002318,2]
[317043454,1709671840006,-500.0,0.0002318,2]
[317043456,1709671840016,-500.0,0.0002318,2]
[317043458,1709671840025,-500.0,0.0002318,2]
[317043459,1709671840034,-500.0,0.0002318,2]
[317043460,1709671840044,-500.0,0.0002318,2]
[317043462,1709671840054,-500.0,0.0002318,2]
[317043463,1709671840063,-257.49872749,0.00023186,2]
[317043464,1709671840073,-500.0,0.00023186,2]
[317043465,1709671840083,-500.0,0.00023186,2]
[317043467,1709671840092,-500.0,0.00023186,2]
[317043468,1709671840102,-528.16522503,0.00023186,2]
[317043469,1709671840112,-677.78880808,0.00023187,2]
[317043471,1709671840122,-198477.30012104,0.00023187,2]
[317043472,1709671840132,-200.8478084,0.00023278,2]
[317043473,1709671840141,-500.0,0.00023287,2]
[317043474,1709671840151,-500.0,0.00023287,2]
[317043476,1709671840161,-500.0,0.00023287,2]
[317043477,1709671840171,-500.0,0.00023287,2]
[317043478,1709671840181,-500.0,0.00023287,2]
[317043480,1709671840190,-393.54468047,0.00023287,2]
[317043481,1709671840200,-500.0,0.00023287,2]
[317043482,1709671840211,-500.0,0.00023287,2]
[317043483,1709671840220,-500.0,0.00023287,2]
[317043485,1709671840230,-500.0,0.00023287,2]
[317043486,1709671840240,-500.0,0.00023287,2]
[317043487,1709671840252,-501.08949458,0.00023287,2]
[317043489,1709671840262,-500.0,0.00023287,2]
[317043490,1709671840272,-500.0,0.00023287,2]
[317043491,1709671840281,-298.34214551,0.00023287,2]
[317043492,1709671840291,-396.89183824,0.00023287,2]
[317043494,1709671840301,-500.0,0.00023287,2]
[317043495,1709671840311,-190.55274162,0.00023287,2]
[317043496,1709671840321,-500.0,0.00023287,2]
[317043498,1709671840331,-500.0,0.00023287,2]
[317043499,1709671840340,-335.27527084,0.00023287,2]
[317043500,1709671840351,-500.0,0.00023287,2]
[317043501,1709671840363,-500.0,0.00023287,2]
[317043503,1709671840373,-500.0,0.00023287,2]
[317043504,1709671840382,-500.0,0.00023287,2]
[317043505,1709671840392,-581.77242761,0.00023287,2]
[317043507,1709671840402,-500.0,0.00023287,2]
[317043508,1709671840412,-372.70364511,0.00023287,2]
[317043509,1709671840421,-500.0,0.00023287,2]
[317043510,1709671840431,-500.0,0.00023287,2]
[317043512,1709671840441,-175.00340491,0.00023287,2]
[317043513,1709671840450,-546.07772786,0.00023287,2]
[317043514,1709671840460,-500.0,0.00023287,2]
[317043516,1709671840469,-500.0,0.00023287,2]
[317043517,1709671840479,-549.31,0.00023287,2]
[317043518,1709671840488,-549.31,0.00023287,2]
[317043520,1709671840498,-549.31,0.00023287,2]
[317043521,1709671840511,-549.31,0.00023287,2]
[317043522,1709671840520,-549.31,0.00023287,2]
[317043524,1709671840530,-549.31,0.00023287,2]
[317043525,1709671840539,-549.31,0.00023287,2]
[317043526,1709671840548,-549.31,0.00023287,2]
[317043527,1709671840557,-549.31,0.00023287,2]
[317043529,1709671840566,-500.0,0.00023287,2]
[317043530,1709671840576,-500.0,0.00023287,2]
[317043531,1709671840585,-500.0,0.00023287,2]
[317043533,1709671840595,-155.01240099,0.00023287,2]
[317043534,1709671840605,-481.57106633,0.00023287,2]
[317043535,1709671840614,-500.0,0.00023287,2]
[317043536,1709671840624,-500.0,0.00023287,2]
[317043538,1709671840632,-500.0,0.00023287,2]
[317043539,1709671840642,-500.0,0.00023287,2]
[317043540,1709671840651,-503.7361153,0.00023287,2]
[317043542,1709671840661,-501.35296597,0.00023287,2]
[317043543,1709671840670,-500.0,0.00023287,2]
[317043544,1709671840680,-500.0,0.00023287,2]
[317043546,1709671840689,-500.0,0.00023287,2]
[317043547,1709671840698,-500.0,0.00023287,2]
[317043548,1709671840709,-458.64,0.00023287,2]
[317043550,1709671840718,-501.26550569,0.00023287,2]
[317043551,1709671840727,-500.0,0.00023287,2]
[317043552,1709671840737,-500.0,0.00023287,2]
[317043553,1709671840748,-500.0,0.00023287,2]
[317043555,1709671840760,-500.0,0.00023287,2]
[317043556,1709671840769,-500.0,0.00023287,2]
[317043557,1709671840782,-500.0,0.00023287,2]
[317043559,1709671840797,-500.0,0.00023287,2]
[317043560,1709671840807,-213.68,0.00023287,2]
[317043561,1709671840817,-500.0,0.00023287,2]
[317043563,1709671840826,-636.35926681,0.00023287,2]
[317043564,1709671840836,-500.0,0.00023287,2]
[317043565,1709671840845,-394.02461129,0.00023287,2]
[317043566,1709671840855,-500.0,0.00023287,2]
[317043568,1709671840864,-500.0,0.00023287,2]
[317043569,1709671840875,-249.18635807,0.00023287,2]
[317043570,1709671840884,-500.0,0.00023287,2]
[317043572,1709671840894,-500.0,0.00023287,2]
[317043573,1709671840904,-500.0,0.00023287,2]
[317043574,1709671840915,-208.53,0.00023287,2]
[317043575,1709671840926,-500.0,0.00023287,2]
[317043577,1709671840938,-500.0,0.00023287,2]
[317043578,1709671840948,-501.1743733,0.00023287,2]
[317043579,1709671840961,-500.0,0.00023287,2]
[317043581,1709671840970,-500.0,0.00023287,2]
[317043582,1709671840981,-500.0,0.00023287,2]
[317043583,1709671840990,-500.0,0.00023287,2]
[317043584,1709671841002,-500.0,0.00023287,2]
[317043586,1709671841013,-500.0,0.00023287,2]
[317043587,1709671841022,-500.0,0.00023287,2]
[317043588,1709671841031,-500.0,0.00023287,2]
[317043589,1709671841047,-500.0,0.00023287,2]
[317043590,1709671841056,-500.0,0.00023287,2]
[317043592,1709671841066,-500.0,0.00023287,2]
[317043593,1709671841076,-500.0,0.00023287,2]
[317043594,1709671841086,-500.0,0.00023287,2]
[317043595,1709671841095,-500.0,0.00023287,2]
[317043596,1709671841105,-500.0,0.00023287,2]
[317043597,1709671841115,-500.0,0.00023287,2]
[317043599,1709671841124,-500.0,0.00023287,2]
[317043600,1709671841134,-500.0,0.00023287,2]
[317043601,1709671841145,-500.0,0.00023287,2]
[317043602,1709671841154,-500.0,0.00023287,2]
[317043603,1709671841164,-500.0,0.00023287,2]
[317043605,1709671841173,-500.0,0.00023287,2]
[317043606,1709671841183,-500.0,0.00023287,2]
[317043607,1709671841193,-500.0,0.00023287,2]
[317043608,1709671841203,-503.49443124,0.00023287,2]
[317043609,1709671841213,-500.0,0.00023287,2]
[317043611,1709671841222,-500.0,0.00023287,2]
[317043612,1709671841232,-500.0,0.00023287,2]
[317043613,1709671841245,-500.0,0.00023287,2]
[317043614,1709671841258,-500.0,0.00023287,2]
[317043615,1709671841268,-500.0,0.00023287,2]
[317043616,1709671841278,-500.0,0.00023287,2]
[317043618,1709671841287,-500.0,0.00023287,2]
[317043619,1709671841298,-500.0,0.00023287,2]
[317043620,1709671841307,-500.0,0.00023287,2]
[317043621,1709671841317,-500.0,0.00023287,2]
[317043622,1709671841326,-500.0,0.00023287,2]
[317043624,1709671841336,-500.0,0.00023287,2]
[317043625,1709671841345,-500.0,0.00023287,2]
[317043626,1709671841354,-500.0,0.00023287,2]
[317043627,1709671841366,-500.0,0.00023287,2]
[317043628,1709671841376,-461.8,0.00023287,2]
[317043629,1709671841387,-500.0,0.00023287,2]
[317043631,1709671841397,-500.0,0.00023287,2]